bitfinex-derivatives/quotes_ETHF0:USTF0_20250309
["timestamp","ask_amount","ask_price","bid_price","bid_amount"]
[1741548410545,0.9844,2032.1,2031.9,0.98446]
[1741548410750,5.66856,2032.3,2031.8,3.2078]
[1741548411049,3.2078,2032.3,2031.8,3.21517898]
[1741548411252,0.98444,2032.0,2031.8,4.19967898]
[1741548411459,0.98435,2032.2,2032.0,0.9844]
[1741548411652,0.98446,2032.0,2031.8,4.19967898]
[1741548411852,3.2078,2032.3,2031.8,3.21517898]
[1741548412453,4.0552,2032.4,2031.9,2.46119]
[1741548412760,3.2078,2032.6,2032.1,5.66871]
[1741548413161,0.9841,2032.7,2032.5,0.98418]
[1741548413762,0.98412,2032.7,2032.5,0.98418]
[1741548413963,0.98409,2032.7,2032.5,0.98418]
[1741548414165,0.98426,2032.4,2032.1,3.2078]
[1741548414360,5.66814,2032.6,2032.1,3.2078]
[1741548414659,0.98433,2032.2,2032.1,3.2078]
[1741548414859,0.98433,2032.2,2031.9,2.949]
[1741548414860,0.98444,2032.0,2031.9,0.98447]
[1741548415055,2.46058,2032.4,2031.9,0.98447]
[1741548415258,0.98437,2032.2,2032.0,0.98441]
[1741548415456,0.6136,2032.3,2032.1,3.2078]
[1741548415657,3.219,2032.6,2032.5,0.98418]
[1741548415858,4.20314,2032.6,2032.4,4.19201]
[1741548416165,4.20314,2032.6,2032.5,0.98418]
[1741548416166,3.219,2032.6,2032.5,0.98418]
[1741548416558,3.219,2032.6,2032.4,3.2078]
[1741548416767,3.219,2032.6,2032.5,0.98418]
[1741548417662,3.21517898,2032.9,2032.8,0.98404]
[1741548417858,0.00737898,2032.9,2032.8,0.98404]
[1741548418170,0.98404,2032.8,2032.7,3.2078]
[1741548418460,0.00737898,2032.9,2032.7,3.2078]
[1741548418665,0.98409,2032.7,2032.5,0.98416]
[1741548418861,3.2078,2032.6,2032.1,3.2078]
[1741548419062,0.6315,2032.6,2032.3,0.98425]
[1741548419258,0.6315,2032.6,2032.1,3.2078]
[1741548419463,1.61565,2032.6,2032.4,0.98421]
[1741548419665,0.6315,2032.6,2032.1,3.2078]
[1741548419867,0.98433,2032.2,2032.1,3.2078]
[1741548420166,3.8393,2032.6,2032.1,3.2078]
[1741548420368,0.98433,2032.2,2032.1,3.2078]
[1741548420567,0.98433,2032.2,2031.8,0.00737898]
[1741548420757,5.66855,2032.3,2031.8,0.00737898]
[1741548420960,0.98445,2032.0,2031.8,0.00737898]
[1741548421164,0.6437,2032.1,2031.8,0.99186898]
[1741548421366,0.98447,2031.9,2031.8,0.00737898]
[1741548421763,0.6126,2032.0,2031.8,0.00737898]
[1741548422070,0.98447,2031.9,2031.8,0.00737898]
[1741548422271,0.98461,2031.7,2031.5,0.98464]
[1741548422471,3.6026,2032.0,2031.4,2.46179]
[1741548422768,3.6026,2032.0,2031.3,3.58825441]
[1741548422967,3.6026,2032.0,2031.3,3.2078]
[1741548423165,3.6026,2032.0,2031.7,3.2078]
[1741548423365,0.00737898,2031.9,2031.8,0.98452]
[1741548423784,25.2908,2033.0,2031.8,2.949]
[1741548424069,0.6126,2032.9,2032.5,3.2078]
[1741548424270,0.6126,2032.9,2032.8,4.19184]
[1741548424765,1.59659,2032.9,2032.8,3.2078]
[1741548424969,0.6126,2032.9,2032.8,3.2078]
[1741548425168,0.6126,2032.9,2032.8,4.19184]
[1741548425370,1.59659,2032.9,2032.8,3.2078]
[1741548425672,0.6126,2032.9,2032.8,3.2078]
[1741548425873,0.6126,2032.9,2032.8,4.19184]
[1741548426065,2.28548898,2033.1,2032.9,0.98397]
[1741548426471,1.30157898,2033.1,2032.8,3.2078]
[1741548426671,2.28547898,2033.1,2032.8,4.19179]
[1741548426863,2.28549898,2033.1,2032.9,0.98399]
[1741548427367,0.98394,2033.0,2032.8,3.2078]
[1741548427673,1.30157898,2033.1,2032.8,3.2078]
[1741548427872,2.28548898,2033.1,2032.9,0.98398]
[1741548428068,1.30157898,2033.1,2032.9,0.98398]
[1741548428272,2.28547898,2033.1,2032.9,0.98398]
[1741548428474,1.30157898,2033.1,2032.8,3.2078]
[1741548428662,1.30157898,2033.1,2033.0,0.98394]
[1741548428663,0.00737898,2033.1,2033.0,0.98394]
[1741548428867,0.6679,2033.6,2033.0,2.45986]
[1741548429172,1.65158,2033.6,2033.4,0.98373]
[1741548429377,0.6679,2033.6,2033.3,3.2078]
[1741548429569,0.98372,2033.5,2033.3,4.19158]
[1741548429870,0.6679,2033.6,2033.3,3.2078]
[1741548430066,0.67527898,2033.6,2033.1,2.988]
[1741548430271,3.13445898,2033.6,2033.0,3.2078]
[1741548430670,0.67527898,2033.6,2032.7,2.987]
[1741548430867,2.45925,2033.5,2033.0,3.2078]
[1741548431074,0.67527898,2033.6,2033.0,3.2078]
[1741548431280,0.67527898,2033.6,2033.3,0.98379]
[1741548431479,0.98375,2033.4,2033.3,0.98379]
[1741548431779,0.9838,2033.3,2033.1,0.98389]
[1741548431980,0.67527898,2033.6,2033.0,3.2078]
[1741548432174,0.98386,2033.2,2033.0,4.1917]
[1741548432365,3.13444898,2033.6,2033.1,0.98388]
[1741548432571,0.98379,2033.4,2033.2,0.98383]
[1741548432776,0.98377,2033.4,2033.2,0.98381]
[1741548433079,0.67527898,2033.6,2033.3,3.2078]
[1741548433370,1.65894898,2033.6,2033.4,0.98371]
[1741548433576,0.67527898,2033.6,2033.5,0.9837]
[1741548433975,0.67527898,2033.6,2033.3,3.2078]
[1741548434176,0.67527898,2033.6,2033.1,2.986]
[1741548434477,3.13444898,2033.6,2033.0,4.19172]
[1741548434681,0.98389,2033.1,2033.0,3.2078]
[1741548435071,3.13444898,2033.6,2033.0,3.2078]
[1741548435072,0.98386,2033.2,2033.0,3.2078]
[1741548435380,0.98389,2033.1,2033.0,3.2078]
[1741548436079,0.98389,2033.1,2032.9,0.98397]
[1741548436471,0.6727,2033.4,2032.7,3.2078]
[1741548436670,1.65648,2033.4,2033.2,0.98382]
[1741548436871,0.98383,2033.3,2033.1,3.2078]
[1741548437075,0.98383,2033.3,2033.1,4.19167]
[1741548437276,0.6727,2033.4,2033.1,3.2078]
[1741548437475,0.67527898,2033.6,2033.5,0.9837]
[1741548437676,1.65892898,2033.6,2033.5,4.1915]
[1741548437871,0.00737898,2033.6,2033.5,4.1915]
[1741548438675,0.99102898,2033.6,2033.5,3.2078]
[1741548438875,0.67457898,2033.6,2033.2,4.19162]
[1741548439076,0.98379,2033.3,2033.2,3.2078]
[1741548439275,0.98389,2033.1,2032.9,3.2078]
[1741548439484,0.98389,2033.1,2033.0,0.98394]
[1741548439676,0.98389,2033.1,2032.9,3.2078]
[1741548439977,0.98383,2033.3,2033.1,0.98387]
[1741548440286,0.98387,2033.2,2033.0,0.98392]
[1741548440474,0.6635,2033.5,2032.9,3.2078]
[1741548440674,0.98379,2033.4,2032.9,5.66772]
[1741548440873,0.6635,2033.5,2032.9,3.2078]
[1741548441082,0.6635,2033.5,2033.2,0.98382]
[1741548441378,0.98377,2033.4,2033.2,0.98382]
[1741548441575,0.98383,2033.3,2033.1,0.98386]
[1741548441776,0.98383,2033.3,2033.2,0.98384]
[1741548441979,0.98379,2033.3,2032.9,3.2078]
[1741548442176,0.6635,2033.5,2033.2,3.2078]
[1741548442381,4.87722898,2033.6,2033.4,0.98372]
[1741548442582,4.87722898,2033.6,2033.5,0.9837]
[1741548442583,0.67457898,2033.6,2033.5,0.9837]
[1741548443083,0.00737898,2033.6,2033.5,4.1915]
[1741548444688,0.6275,2033.9,2033.8,0.98355]
[1741548444879,0.6275,2033.9,2033.8,4.19135]
[1741548445075,0.6658,2034.0,2033.8,3.2078]
[1741548445385,0.9835,2033.9,2033.8,3.2078]
[1741548445783,0.9835,2033.9,2033.1,2.45971]
[1741548445784,2.45884,2033.9,2033.3,3.2078]
[1741548445981,2.45884,2033.9,2033.5,0.98369]
[1741548445982,0.98367,2033.6,2033.5,0.98369]
[1741548446190,2.45884,2033.9,2033.4,0.99110898]
[1741548446380,0.98367,2033.6,2033.4,0.99110898]
[1741548446684,0.9837,2033.5,2033.4,0.00737898]
[1741548447981,0.6463,2033.7,2033.4,0.00737898]
[1741548448290,0.00737898,2034.1,2034.0,0.98346]
[1741548448485,0.99082898,2034.1,2033.9,0.98348]
[1741548448681,0.99080898,2034.1,2033.9,3.2078]
[1741548448881,0.98346,2034.0,2033.9,4.19129]
[1741548449085,0.99080898,2034.1,2034.0,0.98346]
[1741548449383,2.985,2034.6,2034.0,0.98346]
[1741548449584,1.887,2034.8,2034.4,3.2078]
[1741548450084,1.2711,2034.8,2034.4,3.2078]
[1741548450494,1.2711,2034.8,2034.0,0.74787245]
[1741548450495,0.98345,2034.1,2034.0,3.2078]
[1741548450686,2.45804,2034.5,2034.0,3.2078]
[1741548450884,6.28791,2034.4,2033.7,3.2078]
[1741548451088,0.98344,2034.1,2033.9,0.9835]
[1741548451392,0.98347,2034.0,2033.8,0.98352]
[1741548451691,6.28791,2034.4,2033.7,3.2078]
[1741548451893,0.98347,2034.0,2033.8,0.98353]
[1741548452188,3.2078,2034.1,2033.4,3.21517898]
[1741548452385,0.98367,2033.6,2033.4,4.19890898]
[1741548452579,0.98369,2033.6,2033.4,4.19890898]
[1741548452878,0.98359,2033.8,2033.5,0.98365]
[1741548453083,0.98359,2033.8,2033.4,3.21517898]
[1741548453084,1.3312,2033.9,2033.7,3.2078]
[1741548453280,0.6683,2033.9,2033.7,3.2078]
[1741548453485,0.98355,2033.8,2033.7,3.2078]
[1741548453688,0.6683,2033.9,2033.7,3.2078]
[1741548453985,0.6629,2034.1,2033.7,3.2078]
[1741548454192,0.9835,2034.0,2033.8,0.98354]
[1741548454392,0.6683,2034.3,2033.7,3.2078]
[1741548454790,0.98352,2033.9,2033.7,4.19138]
[1741548455189,0.6683,2034.3,2033.7,3.2078]
[1741548455395,0.98352,2033.9,2033.7,4.19138]
[1741548455891,0.98352,2033.9,2033.4,5.44467898]
[1741548455892,6.4268,2034.2,2033.4,3.21517898]
[1741548456099,0.6213,2033.8,2033.6,3.2078]
[1741548456498,1.60488,2033.8,2033.6,4.19143]
[1741548456696,6.204,2035.0,2033.7,2.977]
[1741548456994,4.507,2035.2,2034.6,3.2078]
[1741548457192,1.288,2035.2,2034.9,3.2078]
[1741548457387,0.03853804,2035.3,2035.2,0.98288]
[1741548457598,0.03853804,2035.3,2034.9,3.2078]
[1741548457891,0.9829,2035.2,2034.9,4.1908]
[1741548458092,0.9829,2035.2,2034.9,3.2078]
[1741548458295,0.03853804,2035.3,2034.9,3.2078]
[1741548458494,0.98297,2035.0,2034.9,3.2078]
[1741548459193,0.98307,2034.8,2034.7,0.00737898]
[1741548459785,4.649,2034.8,2034.1,3.2078]
[1741548459992,4.649,2034.8,2033.9,2.976]
[1741548459993,0.98315,2034.7,2034.4,3.2078]
[1741548460292,0.98334,2034.3,2034.1,3.2078]
[1741548460497,0.98336,2034.2,2034.1,3.2078]
[1741548461095,0.00737898,2034.4,2034.1,3.2078]
[1741548461391,0.99067898,2034.4,2034.1,3.2078]
[1741548461598,0.98334,2034.3,2034.1,4.19117]
[1741548461798,0.99067898,2034.4,2034.1,3.2078]
[1741548461992,0.98336,2034.2,2034.1,3.2078]
[1741548462297,0.98333,2034.3,2034.1,3.2078]
[1741548462505,0.98336,2034.2,2034.1,3.2078]
[1741548462995,1.61924,2034.3,2034.1,3.2078]
[1741548463392,0.98336,2034.2,2034.1,3.2078]
[1741548463595,0.6359,2034.3,2034.1,3.2078]
[1741548464092,0.98336,2034.2,2034.1,3.2078]
[1741548464393,0.00737898,2034.4,2034.1,3.2078]
[1741548464602,0.00737898,2034.4,2034.2,0.98334]
[1741548465102,0.98336,2034.2,2034.1,3.2078]
[1741548466102,3.21517898,2034.4,2033.9,3.21517898]
[1741548466296,0.98346,2034.0,2033.9,3.21517898]
[1741548467291,1.63106,2034.0,2033.9,3.21517898]
[1741548467506,1.63106,2034.0,2033.9,0.00737898]
[1741548467791,0.98357,2033.8,2033.6,3.2078]
[1741548467997,1.2891,2034.0,2033.6,4.19142]
[1741548468198,0.6476,2034.0,2033.6,3.2078]
[1741548468398,1.63108,2034.0,2033.8,0.98353]
[1741548468594,0.6476,2034.0,2033.6,3.2078]
[1741548468805,0.98353,2033.9,2033.7,0.00737898]
[1741548468999,1.63109,2034.0,2033.8,0.98354]
[1741548469300,0.98355,2033.8,2033.7,0.00737898]
[1741548470600,0.98355,2033.8,2033.2,3.8237]
[1741548470601,0.98379,2033.3,2033.2,3.2078]
[1741548470794,0.98394,2033.0,2032.9,2.973]
[1741548470989,0.6566,2033.5,2032.9,0.98397]
[1741548471190,0.6566,2033.5,2032.8,3.2078]
[1741548471394,0.98399,2032.9,2032.8,3.2078]
[1741548473597,0.98409,2032.7,2032.6,0.00737898]
[1741548475196,0.00737898,2033.1,2032.6,0.00737898]
[1741548475397,0.98394,2033.0,2032.9,3.2078]
[1741548475592,0.98409,2032.7,2032.6,0.00737898]
[1741548475795,0.66987898,2033.1,2032.6,0.00737898]
[1741548475796,0.98404,2032.8,2032.6,0.00737898]
[1741548476203,0.66987898,2033.1,2032.6,0.00737898]
[1741548476414,0.98403,2032.9,2032.8,3.2078]
[1741548477203,0.98409,2032.7,2032.1,3.2078]
[1741548477403,5.66825,2032.6,2032.1,3.2078]
[1741548477606,3.2078,2032.6,2032.1,3.2078]
[1741548477794,3.8354,2032.8,2032.3,0.98426]
[1741548477995,3.8354,2032.8,2032.5,0.98417]
[1741548478198,0.98418,2032.6,2032.4,4.192]
[1741548478403,0.98418,2032.5,2032.4,3.21517898]
[1741548478607,0.98418,2032.5,2032.4,0.00737898]
[1741548480510,1.65638,2032.5,2032.4,0.00737898]
[1741548481008,0.6722,2032.5,2032.4,0.00737898]
[1741548481306,0.98418,2032.5,2032.4,0.00737898]
[1741548483106,0.98418,2032.5,2031.7,0.98455]
[1741548483107,2.46058,2032.4,2031.7,0.98455]
[1741548483304,0.98444,2032.0,2031.9,3.2078]
[1741548483912,6.1788,2032.4,2031.9,3.2078]
[1741548484104,0.98428,2032.3,2032.2,3.2078]
[1741548484698,2.46046,2032.5,2032.0,0.98438]
[1741548484911,0.98441,2032.1,2031.9,4.19961898]
[1741548485104,6.851,2032.7,2031.9,4.19961898]
[1741548485105,0.6722,2032.7,2032.4,0.98421]
[1741548485412,0.98423,2032.4,2032.3,3.2078]
[1741548487008,0.6722,2032.7,2032.3,3.2078]
[1741548487213,4.81946,2032.8,2032.3,3.2078]
[1741548487408,0.98406,2032.8,2032.6,4.1919]
[1741548487810,3.8625,2033.0,2032.6,4.1919]
[1741548487811,3.8625,2033.0,2032.6,3.2078]
[1741548488312,0.98405,2032.8,2032.6,4.19189]
[1741548488515,0.00737898,2033.1,2032.6,3.2078]
[1741548488808,0.00737898,2033.1,2032.9,3.2078]
[1741548489010,3.219,2033.0,2032.6,3.2078]
[1741548489202,0.98423,2032.4,2032.3,3.2078]
[1741548489704,5.6679,2032.8,2032.3,3.2078]
[1741548489903,1.2929,2032.9,2032.3,3.2078]
[1741548490204,28.2598,2033.8,2032.6,3.2078]
[1741548490405,0.98397,2033.0,2032.9,3.2078]
[1741548490612,0.98404,2032.8,2032.7,2.97]
[1741548491215,2.45945,2033.4,2032.7,2.97]
[1741548491510,4.5007,2033.5,2032.6,3.2078]
[1741548491511,0.98409,2032.7,2032.6,3.2078]
[1741548491707,0.99133898,2033.0,2032.8,0.98402]
[1741548491915,0.99133898,2033.0,2032.9,7.16079]
[1741548491916,0.00737898,2033.0,2032.9,7.16079]
[1741548492213,0.98376,2033.4,2032.9,7.16079]
[1741548492214,0.98376,2033.4,2032.9,6.1768]
[1741548492414,1.2929,2033.5,2032.9,6.1768]
[1741548492614,1.2929,2033.5,2033.0,0.9839]
[1741548492807,0.98389,2033.1,2032.9,7.16076]
[1741548493008,0.98394,2033.0,2032.9,6.1768]
[1741548493502,0.98394,2033.0,2032.5,3.84547898]
[1741548493503,0.98413,2032.6,2032.5,3.84547898]
[1741548493707,0.98413,2032.6,2032.5,3.21517898]
[1741548494011,0.98413,2032.6,2032.5,0.00737898]
[1741548494418,7.2078,2032.6,2031.9,3.2078]
[1741548494715,3.2078,2032.0,2031.3,3.2078]
[1741548494910,0.98471,2031.4,2031.3,3.2078]
[1741548495110,3.2078,2031.7,2031.3,3.2078]
[1741548495304,5.24401,2031.9,2031.6,4.19239]
[1741548495514,2.46133,2031.8,2031.5,3.2078]
[1741548495711,0.98462,2031.6,2031.5,0.00737898]
[1741548496117,0.98462,2031.6,2031.2,3.2078]
[1741548496118,0.98476,2031.3,2031.2,3.2078]
[1741548496616,0.98495,2031.0,2030.9,3.2078]
[1741548497017,1.2915,2031.3,2030.9,3.2078]
[1741548497215,0.98489,2031.1,2030.9,3.2078]
[1741548498016,0.98491,2031.0,2030.9,3.2078]
[1741548498209,0.98501,2030.8,2030.7,0.00737898]
[1741548498417,1.2915,2031.3,2030.7,0.00737898]
[1741548498615,0.00737898,2031.0,2030.9,3.2078]
[1741548498807,0.00737898,2031.0,2030.9,4.19275]
[1741548499327,0.98477,2031.3,2031.0,0.98487]
[1741548499614,25.054,2031.7,2031.2,3.2078]
[1741548499820,1.2759,2031.8,2031.5,3.2078]
[1741548500014,0.98462,2031.6,2031.5,3.2078]
[1741548500314,1.2759,2031.8,2031.5,3.2078]
[1741548500514,0.98462,2031.6,2031.5,3.2078]
[1741548500716,3.2078,2032.7,2031.5,6.1758]
[1741548500911,0.6286,2032.5,2031.9,3.2078]
[1741548501215,0.98442,2032.0,2031.9,3.2078]
[1741548501605,3.2078,2032.4,2031.9,3.2078]
[1741548501811,0.98441,2032.1,2031.9,3.2078]
[1741548502006,0.98441,2032.1,2031.9,3.21517898]
[1741548502206,0.98442,2032.0,2031.9,3.21517898]
[1741548502812,0.98442,2032.0,2031.9,0.00737898]
[1741548503214,1.63932,2032.0,2031.9,0.00737898]
[1741548504815,0.98462,2031.6,2031.5,3.2078]
[1741548505219,0.98491,2031.1,2030.8,0.6714]
[1741548505414,3.2078,2031.4,2030.7,3.7474]
[1741548505615,0.6332,2031.3,2030.8,0.98501]
[1741548505818,0.9849,2031.1,2030.8,0.98501]
[1741548506013,0.98484,2031.2,2031.0,0.98489]
[1741548506316,0.98484,2031.2,2030.8,0.00737898]
[1741548506317,0.98496,2030.9,2030.8,0.00737898]
[1741548506520,0.98493,2031.0,2030.8,0.99236898]
[1741548506712,0.98493,2031.0,2030.8,0.00737898]
[1741548507107,0.64057898,2031.3,2030.8,0.00737898]
[1741548507518,0.9849,2031.1,2030.8,0.99233898]
[1741548507817,0.9849,2031.1,2030.9,0.98495]
[1741548508212,1.25587898,2031.3,2030.8,0.00737898]
[1741548508413,0.98494,2031.0,2030.8,0.99237898]
[1741548508613,1.25587898,2031.3,2030.8,0.00737898]
[1741548509215,0.98491,2031.0,2030.8,0.99233898]
[1741548509523,0.98491,2031.0,2030.8,0.00737898]
[1741548509722,0.98496,2030.9,2030.8,0.00737898]
[1741548511819,2.46254,2030.8,2030.2,0.98528]
[1741548512022,0.98498,2030.9,2030.4,3.2078]
[1741548512215,0.98503,2030.8,2030.4,3.2078]
[1741548512416,0.98503,2030.8,2030.6,0.9851]
[1741548513117,0.6726,2031.0,2030.5,0.00737898]
[1741548513319,3.2078,2031.2,2030.8,3.2078]
[1741548513518,0.98496,2030.9,2030.8,3.2078]
[1741548513722,2.46216,2031.1,2030.5,6.18117898]
[1741548513930,3.2078,2031.9,2031.8,0.98449]
[1741548514224,0.6186,2032.7,2031.8,3.2078]
[1741548514414,0.6186,2032.7,2032.2,3.2078]
[1741548514614,0.6186,2032.7,2031.8,2.949]
[1741548514615,3.21517898,2032.6,2032.1,3.2078]
[1741548515023,0.9844,2032.1,2031.8,6.1568]
[1741548515225,0.98433,2032.2,2032.1,0.00737898]
[1741548515615,0.98457,2031.7,2031.6,3.2078]
[1741548515822,3.2078,2031.8,2031.3,3.2078]
[1741548516020,0.6273,2031.6,2031.3,3.2078]
[1741548516217,2.965,2032.0,2031.3,3.2078]
[1741548516413,0.98457,2031.7,2031.6,3.2078]
[1741548516619,0.98452,2031.9,2031.6,3.2078]
[1741548516827,0.00737898,2031.9,2031.6,3.2078]
[1741548517019,0.98457,2031.7,2031.6,3.2078]
[1741548517321,0.98457,2031.7,2031.4,0.00737898]
[1741548517522,0.98467,2031.5,2031.4,0.00737898]
[1741548517720,0.98483,2031.2,2030.9,3.2078]
[1741548517920,0.98483,2031.2,2030.6,5.913]
[1741548517921,2.964,2031.2,2030.6,3.2078]
[1741548518120,3.8351,2031.1,2030.6,3.2078]
[1741548518428,3.8351,2031.1,2029.7,0.4928]
[1741548518429,3.2078,2030.7,2030.1,3.2078]
[1741548518622,0.98514,2030.6,2030.1,3.2078]
[1741548518927,0.99252898,2030.6,2030.1,3.21271936]
[1741548519130,0.98518,2030.5,2030.1,3.21271936]
[1741548519426,3.2078,2030.3,2030.1,0.00491936]
[1741548519727,2.97137898,2030.6,2030.1,4.19805936]
[1741548519922,0.00737898,2030.6,2030.1,3.21271936]
[1741548520124,0.00737898,2030.6,2030.4,4.19296]
[1741548520422,0.00737898,2030.6,2030.4,3.2078]
[1741548521129,0.00737898,2030.6,2030.5,0.98515]
[1741548521527,0.00737898,2030.6,2030.4,3.2078]
[1741548522727,0.99250898,2030.6,2030.4,3.2078]
[1741548523323,0.98525,2030.3,2030.1,3.21271936]
[1741548523730,1.3258,2030.5,2030.1,3.21271936]
[1741548523928,0.98521,2030.4,2030.1,3.21271936]
[1741548524324,0.98527,2030.3,2030.1,3.21271936]
[1741548524639,1.65392,2030.4,2030.1,3.21271936]
[1741548525131,0.6687,2030.4,2030.1,3.21271936]
[1741548525425,1.64227,2030.5,2030.1,3.21271936]
[1741548525426,1.64226,2030.5,2030.1,3.21271936]
[1741548526225,0.6571,2030.5,2030.1,3.21271936]
[1741548526426,1.64228,2030.5,2030.1,3.21271936]
[1741548526628,0.98521,2030.4,2030.1,3.21271936]
[1741548526830,1.64226,2030.5,2030.1,3.21271936]
[1741548527027,0.6571,2030.5,2030.1,3.21271936]
[1741548527529,1.64229,2030.5,2030.1,3.21271936]
[1741548527727,0.6571,2030.5,2030.1,3.21271936]
[1741548527927,0.98527,2030.3,2030.1,3.21271936]
[1741548528129,0.98528,2030.3,2030.1,3.21271936]
[1741548528529,3.8828,2030.4,2030.1,3.21271936]
[1741548528729,4.86802,2030.4,2030.1,3.21271936]
[1741548529035,0.98525,2030.3,2030.1,3.21271936]
[1741548529237,3.8828,2030.4,2030.1,3.21271936]
[1741548529833,0.00737898,2030.6,2030.1,3.21271936]
[1741548530037,0.00737898,2030.6,2030.5,4.19295]
[1741548530437,0.00737898,2030.6,2030.5,4.79938948]
[1741548530832,0.00737898,2030.6,2030.5,3.81423948]
[1741548531232,0.99247898,2030.6,2030.5,3.81423948]
[1741548531431,0.99247898,2030.6,2030.5,3.2078]
[1741548531836,0.99247898,2030.6,2030.4,0.60643948]
[1741548531837,0.98515,2030.5,2030.4,0.60643948]
[1741548532538,0.98515,2030.5,2030.2,4.19306]
[1741548532941,0.00737898,2030.6,2030.3,0.60706603]
[1741548533239,0.98517,2030.5,2030.3,0.60706603]
[1741548533433,0.98517,2030.5,2030.2,4.19307]
[1741548533638,0.00737898,2030.6,2030.2,3.2078]
[1741548534335,0.98518,2030.5,2030.2,4.19308]
[1741548534532,0.9852,2030.4,2030.3,0.60749784]
[1741548535533,0.00737898,2030.6,2030.2,3.2078]
[1741548535740,0.00737898,2030.6,2030.5,3.2078]
[1741548536542,0.00737898,2030.6,2030.5,3.81509762]
[1741548536939,0.99247898,2030.6,2030.5,3.81509762]
[1741548537443,0.00737898,2030.6,2030.2,3.2078]
[1741548537636,0.00737898,2030.6,2030.3,0.60839315]
[1741548537838,0.99249898,2030.6,2030.3,1.59359315]
[1741548538033,0.99249898,2030.6,2030.4,0.60839315]
[1741548538438,0.99251898,2030.6,2030.4,0.60839315]
[1741548538643,0.99251898,2030.6,2030.4,0.98519]
[1741548538946,0.00737898,2030.6,2030.4,0.98516]
[1741548539139,0.98516,2030.5,2030.3,0.98522]
[1741548539340,0.99251898,2030.6,2030.3,0.98522]
[1741548539846,0.99251898,2030.6,2030.4,0.60813472]
[1741548540148,0.99251898,2030.6,2030.4,1.59332472]
[1741548540539,0.00737898,2030.6,2030.2,3.2078]
[1741548540739,0.00737898,2030.6,2030.5,3.2078]
[1741548540939,0.99247898,2030.6,2030.5,3.2078]
[1741548541238,0.00737898,2030.6,2030.5,4.80133557]
[1741548541638,0.99247898,2030.6,2030.5,3.81618557]
[1741548541844,0.00737898,2030.6,2030.5,4.80133557]
[1741548542035,0.00737898,2030.6,2030.5,3.81618557]
[1741548542234,0.00737898,2030.6,2030.5,4.80133557]
[1741548543936,0.00737898,2030.6,2030.5,3.81618557]
[1741548544250,0.99247898,2030.6,2030.5,3.81618557]
[1741548544647,0.99247898,2030.6,2030.5,0.60838557]
[1741548544846,0.9853,2030.2,2030.1,0.00491936]
[1741548545653,0.62,2030.5,2030.1,0.00491936]
[1741548545849,3.08291,2030.5,2030.1,0.00491936]
[1741548546147,0.9853,2030.2,2030.1,0.00491936]
[1741548546342,0.62,2030.5,2030.1,0.00491936]
[1741548546650,0.9853,2030.2,2030.1,0.00491936]
[1741548548348,1.64767,2030.3,2030.1,0.00491936]
[1741548548555,0.6624,2030.3,2030.1,0.00491936]
[1741548548748,0.9853,2030.2,2030.1,0.00491936]
[1741548549150,0.6624,2030.3,2030.1,0.00491936]
[1741548549350,0.9853,2030.2,2030.1,0.00491936]
[1741548549555,0.6624,2030.3,2030.1,0.00491936]
[1741548549756,0.9853,2030.2,2030.1,0.00491936]
[1741548551390,0.98539,2030.0,2029.9,3.2078]
[1741548551574,0.98554,2029.7,2029.6,3.2078]
[1741548552172,22.107,2030.2,2029.6,3.2078]
[1741548552369,27.52833,2030.2,2029.6,3.2078]
[1741548552671,0.98554,2029.7,2029.6,3.2078]
[1741548555775,0.6329,2029.9,2029.6,3.2078]
[1741548555974,0.98546,2029.9,2029.7,0.98552]
[1741548556167,0.98546,2029.9,2029.6,4.19336]
[1741548556349,0.98546,2029.9,2029.6,4.19335]
[1741548556548,0.98554,2029.7,2029.6,3.2078]
[1741548556756,0.98552,2029.8,2029.6,4.19337]
[1741548557060,0.6342,2030.0,2029.6,3.2078]
[1741548557357,22.107,2030.2,2030.1,0.98535]
[1741548557657,0.98521,2030.4,2030.2,0.9853]
[1741548557855,0.98523,2030.4,2030.2,4.19308]
[1741548558054,2.96437898,2030.6,2030.3,0.98522]
[1741548558260,0.98519,2030.5,2030.2,4.19306]
[1741548558447,0.99249898,2030.6,2030.4,0.98519]
[1741548558651,0.98515,2030.5,2030.3,0.98522]
[1741548558863,0.00737898,2030.6,2030.4,0.6051029]
[1741548559050,0.00737898,2030.6,2030.4,1.5903029]
[1741548559253,0.00737898,2030.6,2030.5,4.19295]
[1741548559563,0.00737898,2030.6,2030.5,3.8129029]
[1741548559564,0.99247898,2030.6,2030.5,3.8129029]
[1741548559860,0.00737898,2030.6,2030.5,4.7980529]
[1741548560948,22.11,2030.9,2030.5,4.7980529]
[1741548560949,0.6668,2031.1,2030.5,3.8129029]
[1741548561160,2.957,2031.3,2030.9,3.2078]
[1741548561361,0.98481,2031.2,2030.9,4.19271]
[1741548561554,2.957,2031.3,2030.9,4.19271]
[1741548561555,0.98479,2031.3,2031.1,0.98486]
[1741548561862,0.98479,2031.3,2031.2,3.2078]
[1741548562456,0.00737898,2031.4,2031.2,3.2078]
[1741548562958,0.98476,2031.3,2031.2,3.2078]
[1741548563360,0.98476,2031.3,2031.2,3.81230952]
[1741548563665,0.00737898,2031.4,2031.2,3.81230952]
[1741548564266,0.99210898,2031.4,2031.2,4.19259]
[1741548564462,0.99210898,2031.4,2031.2,3.2078]
[1741548564463,0.98476,2031.3,2031.2,3.2078]
[1741548564963,0.00737898,2031.4,2031.2,3.2078]
[1741548565357,0.99210898,2031.4,2031.2,3.2078]
[1741548565557,0.98476,2031.3,2031.2,3.2078]
[1741548565858,0.00737898,2031.4,2031.2,3.2078]
[1741548566265,0.00737898,2031.4,2031.3,0.98476]
[1741548566459,0.00737898,2031.4,2031.2,3.2078]
[1741548566663,8.89205222,2052.5,2031.9,3.2078]
[1741548566664,6.1928,2033.6,2031.9,3.2078]